fUST/lending_fUST_20250726
["ID","MTS","AMOUNT","RATE_DAILY","PERIOD"]
[374884190,1753461044438,-160.0,0.0002121,2]
[374884191,1753461044448,-160.0,0.0002121,2]
[374884192,1753461044460,-340.119,0.00021215,2]
[374884193,1753461044469,-1386.37445148,0.00021314,5]
[374884194,1753461044479,-500.0,0.00021325,2]
[374884195,1753461044488,-644.41561795,0.00021325,2]
[374884196,1753461044498,-500.0,0.00021325,2]
[374884197,1753461044507,-500.0,0.00021325,2]
[374884198,1753461044517,-500.0,0.00021325,2]
[374884199,1753461044526,-552.78730248,0.00021325,2]
[374884200,1753461044536,-500.0,0.00021325,2]
[374884201,1753461044545,-500.0,0.00021325,2]
[374884202,1753461044554,-500.0,0.00021325,2]
[374884203,1753461044564,-641.49978633,0.00021325,2]
[374884204,1753461044573,-505.18002943,0.00021325,2]
[374884205,1753461044583,-500.0,0.00021325,2]
[374884206,1753461044592,-500.0,0.00021325,2]
[374884207,1753461044601,-500.0,0.00021325,2]
[374884208,1753461044613,-500.0,0.00021325,2]
[374884209,1753461044623,-500.0,0.00021325,2]
[374884210,1753461044633,-500.0,0.00021325,2]
[374884211,1753461044648,-500.0,0.00021325,2]
[374884212,1753461044659,-500.36042279,0.00021325,2]
[374884213,1753461044668,-500.0,0.00021325,2]
[374884214,1753461044679,-500.8524135,0.00021325,2]
[374884215,1753461044690,-500.0,0.00021325,2]
[374884216,1753461044701,-500.0,0.00021325,2]
[374884217,1753461044714,-500.0,0.00021325,2]
[374884218,1753461044723,-500.0,0.00021325,2]
[374884219,1753461044732,-500.0,0.00021325,2]
[374884220,1753461044742,-500.0,0.00021325,2]
[374884221,1753461044751,-500.0,0.00021364,2]
[374884222,1753461044760,-501.72112936,0.00021364,2]
[374884223,1753461044769,-679.68,0.00021369,2]
[374884224,1753461044779,-460.0,0.00021369,2]
[374884225,1753461044789,-481.6,0.00021369,2]
[374884226,1753461044799,-460.0,0.00021369,2]
[374884227,1753461044808,-294.84,0.00021369,2]
[374884228,1753461044817,-827.55,0.00021369,2]
[374884229,1753461044828,-460.0,0.00021369,2]
[374884230,1753461044839,-460.0,0.00021369,2]
[374884231,1753461044848,-460.0,0.00021369,2]
[374884232,1753461044859,-460.0,0.00021369,2]
[374884233,1753461044869,-460.0,0.00021369,2]
[374884234,1753461044879,-460.0,0.00021369,2]
[374884235,1753461044889,-460.0,0.00021369,2]
[374884236,1753461044899,-460.0,0.00021369,2]
[374884237,1753461044911,-460.0,0.00021369,2]
[374884238,1753461044922,-460.0,0.00021369,2]
[374884239,1753461044932,-151.0,0.00021369,2]
[374884240,1753461044943,-500.0,0.00021382,2]
[374884241,1753461044957,-587.0,0.00021428,2]
[374884242,1753461044966,-500.0,0.000215,2]
[374884243,1753461044976,-1386.37445148,0.00021555,5]
[374884244,1753461044985,-679.68,0.00021643,2]
[374884245,1753461044995,-460.0,0.00021643,2]
[374884246,1753461045004,-481.6,0.00021643,2]
[374884247,1753461045014,-460.0,0.00021643,2]
[374884248,1753461045023,-827.55,0.00021643,2]
[374884249,1753461045033,-460.0,0.00021643,2]
[374884250,1753461045043,-460.0,0.00021643,2]
[374884251,1753461045052,-460.0,0.00021643,2]
[374884252,1753461045063,-460.0,0.00021643,2]
[374884253,1753461045074,-460.0,0.00021643,2]
[374884254,1753461045084,-460.0,0.00021643,2]
[374884255,1753461045094,-460.0,0.00021643,2]
[374884256,1753461045104,-460.0,0.00021643,2]
[374884257,1753461045113,-478.88,0.00021643,2]
[374884258,1753461045124,-460.0,0.00021643,2]
[374884259,1753461045134,-1386.37445148,0.00021797,6]
[374884260,1753461045143,-500.0,0.00021873,2]
[374884261,1753461045152,-500.0,0.00021873,2]
[374884262,1753461045160,-500.0,0.00021873,2]
[374884263,1753461045170,-500.0,0.00021873,2]
[374884264,1753461045179,-500.0,0.00021873,2]
[374884265,1753461045188,-500.0,0.00021873,2]
[374884266,1753461045197,-557.1355728,0.00021873,2]
[374884267,1753461045207,-500.0,0.00021873,2]
[374884268,1753461045216,-500.0,0.00021873,2]
[374884269,1753461045225,-500.0,0.00021873,2]
[374884270,1753461045234,-679.68,0.00021917,2]
[374884271,1753461045243,-460.0,0.00021917,2]
[374884272,1753461045252,-481.6,0.00021917,2]
[374884273,1753461045262,-460.0,0.00021917,2]
[374884274,1753461045271,-827.55,0.00021917,2]
[374884275,1753461045280,-460.0,0.00021917,2]
[374884276,1753461045290,-460.0,0.00021917,2]
[374884277,1753461045300,-460.0,0.00021917,2]
[374884278,1753461045309,-460.0,0.00021917,2]
[374884279,1753461045319,-460.0,0.00021917,2]
[374884280,1753461045328,-460.0,0.00021917,2]
[374884281,1753461045337,-460.0,0.00021917,2]
[374884282,1753461045347,-460.0,0.00021917,2]
[374884283,1753461045356,-460.0,0.00021917,2]
[374884284,1753461045365,-348.21195986,0.00021918,2]
[374884285,1753461045374,-500.0,0.0002193,2]
[374884286,1753461045384,-798.24,0.00022,7]
[374884287,1753461045393,-1129.98,0.00022,7]
[374884288,1753461045403,-6652.3,0.00022,7]
[374884289,1753461045412,-1386.37445148,0.00022038,6]
[374884290,1753461045421,-1100.0534406,0.00022048,2]
[374884291,1753461045431,-721.56,0.00022103,2]
[374884292,1753461045440,-679.68,0.00022191,2]
[374884293,1753461045450,-460.0,0.00022191,2]
[374884294,1753461045460,-481.6,0.00022191,2]
[374884295,1753461045470,-460.0,0.00022191,2]
[374884296,1753461045479,-827.55,0.00022191,2]
[374884297,1753461045489,-460.0,0.00022191,2]
[374884298,1753461045499,-460.0,0.00022191,2]
[374884299,1753461045509,-460.0,0.00022191,2]
[374884300,1753461045518,-460.0,0.00022191,2]
[374884301,1753461045528,-460.0,0.00022191,2]
[374884302,1753461045537,-460.0,0.00022191,2]
[374884303,1753461045547,-460.0,0.00022191,2]
[374884304,1753461045556,-596.74228105,0.00022191,2]
[374884305,1753461045565,-460.0,0.00022191,2]
[374884306,1753461045574,-1386.37445148,0.00022279,6]
[374884307,1753461045584,-343.25324345,0.000224,2]
[374884308,1753461045594,-679.68,0.00022465,2]
[374884309,1753461045603,-1533.76,0.00022465,2]
[374884310,1753461045612,-460.0,0.00022465,2]
[374884311,1753461045622,-481.6,0.00022465,2]
[374884312,1753461045631,-460.0,0.00022465,2]
[374884313,1753461045642,-827.55,0.00022465,2]
[374884314,1753461045656,-260.64,0.00022465,2]
[374884315,1753461045665,-284.24,0.00022465,2]
[374884316,1753461045674,-460.0,0.00022465,2]
[374884317,1753461045685,-460.0,0.00022465,2]
[374884318,1753461045694,-460.0,0.00022465,2]
[374884319,1753461045799,-460.0,0.00022465,2]
[374884320,1753461045811,-460.0,0.00022465,2]
[374884321,1753461045821,-460.0,0.00022465,2]
[374884322,1753461045830,-41194.43673981,0.0002249,7]
[374884323,1753461045840,-151.0,0.0002249,7]
[374884324,1753461045850,-151.0,0.0002249,7]
[374884325,1753461045859,-151.0,0.0002249,7]
[374884326,1753461045868,-1386.37445148,0.00022521,7]
[374884327,1753461045878,-500.0,0.00022533,2]
[374884328,1753461045887,-377.25746099,0.000226,4]
[374884329,1753461045897,-500.0,0.00022636,2]
[374884330,1753461045906,-621.69907411,0.0002265,2]
[374884331,1753461045915,-269.31324823,0.0002265,2]
[374884332,1753461045924,-500.0,0.00022733,2]
[374884333,1753461045933,-679.68,0.00022739,2]
[374884334,1753461045942,-460.0,0.00022739,2]
[374884335,1753461045953,-481.6,0.00022739,2]
[374884336,1753461045963,-460.0,0.00022739,2]
[374884337,1753461045973,-827.55,0.00022739,2]
[374884338,1753461045982,-304.08,0.00022739,2]
[374884339,1753461045991,-460.0,0.00022739,2]
[374884340,1753461046001,-317.17347682,0.00022739,2]
[374884341,1753461046010,-460.0,0.00022739,2]
[374884342,1753461046019,-460.0,0.00022739,2]
[374884343,1753461046028,-460.0,0.00022739,2]
[374884344,1753461046037,-312.16666667,0.00022762,7]
[374884345,1753461046047,-1386.37445148,0.00022762,7]
[374884346,1753461046057,-160.0,0.00022776,3]
[374884347,1753461046067,-406.22612813,0.00022976,2]
[374884348,1753461046076,-364.95,0.00023,2]
[374884349,1753461046085,-1386.37445148,0.00023003,8]
[374884351,1753461046094,-679.68,0.00023013,2]
[374884352,1753461046103,-460.0,0.00023013,2]
[374884353,1753461046113,-481.6,0.00023013,2]
[374884354,1753461046122,-460.0,0.00023013,2]
[374884355,1753461046131,-827.55,0.00023013,2]
[374884356,1753461046140,-460.0,0.00023013,2]
[374884357,1753461046150,-460.0,0.00023013,2]
[374884358,1753461046159,-460.0,0.00023013,2]
[374884359,1753461046168,-347.01,0.00023013,2]
[374884360,1753461046178,-649.03,0.00023155,6]
[374884361,1753461046187,-537.58,0.00023155,2]
[374884362,1753461046196,-618.52113841,0.00023184,2]
[374884363,1753461046207,-1129.98,0.000232,7]
[374884364,1753461046216,-1386.37445148,0.00023245,8]
[374884365,1753461046225,-537.58,0.00023255,2]
[374884366,1753461046234,-679.68,0.00023287,2]
[374884367,1753461046243,-460.0,0.00023287,2]
[374884368,1753461046253,-481.6,0.00023287,2]
[374884369,1753461046262,-460.0,0.00023287,2]
[374884370,1753461046272,-827.55,0.00023287,2]
[374884371,1753461046281,-460.0,0.00023287,2]
[374884372,1753461046291,-460.0,0.00023287,2]
[374884373,1753461046300,-460.0,0.00023287,2]
[374884374,1753461046310,-6652.3,0.000233,7]
[374884375,1753461046319,-2157.0,0.00023312,2]
[374884376,1753461046329,-969.0,0.00023312,2]
[374884377,1753461046338,-407.0,0.00023312,2]
[374884378,1753461046348,-421.487,0.00023312,2]
[374884379,1753461046358,-648.0,0.00023312,2]
[374884380,1753461046367,-537.58,0.00023355,3]
[374884381,1753461046377,-537.58,0.00023455,7]
[374884382,1753461046387,-151.0,0.00023486,7]
[374884383,1753461046397,-1386.37445148,0.00023486,9]
[374884384,1753461046407,-798.24,0.000235,7]
[374884385,1753461046416,-151.0,0.00023505,2]
[374884386,1753461046426,-25000.0,0.00023505,2]
[374884387,1753461046436,-151.0,0.00023505,2]
[374884388,1753461046445,-151.0,0.00023505,2]
[374884389,1753461046455,-151.0,0.00023505,2]
[374884390,1753461046464,-151.0,0.00023505,2]
[374884391,1753461046474,-151.0,0.00023505,2]
[374884392,1753461046484,-151.0,0.00023505,2]
[374884393,1753461046493,-151.0,0.00023505,2]
[374884394,1753461046503,-151.0,0.00023505,2]
[374884396,1753461046512,-151.0,0.00023505,2]
[374884398,1753461046521,-215.0738,0.00023505,2]
[374884400,1753461046530,-279.85335205,0.00023505,2]
[374884402,1753461046542,-151.0,0.00023505,2]
[374884403,1753461046552,-151.0,0.00023505,2]
[374884405,1753461046561,-151.0,0.00023505,2]
[374884407,1753461046571,-151.0,0.00023505,2]
[374884409,1753461046580,-151.0,0.00023505,2]
[374884410,1753461046589,-151.0,0.00023505,2]
[374884411,1753461046599,-151.0,0.00023505,2]
[374884412,1753461046608,-151.0,0.00023505,2]
[374884413,1753461046618,-151.0,0.00023505,2]
[374884415,1753461046628,-151.0,0.00023505,2]
[374884417,1753461046638,-151.0,0.00023505,2]
[374884418,1753461046655,-151.0,0.00023505,2]
[374884419,1753461046665,-151.0,0.00023505,7]
[374884421,1753461046674,-537.58,0.00023555,6]
[374884423,1753461046684,-679.68,0.00023561,2]
[374884425,1753461046694,-460.0,0.00023561,2]
[374884427,1753461046705,-481.6,0.00023561,2]
[374884430,1753461046715,-460.0,0.00023561,2]
[374884431,1753461046725,-827.55,0.00023561,2]
[374884432,1753461046734,-460.0,0.00023561,2]
[374884433,1753461046745,-460.0,0.00023561,2]
[374884434,1753461046755,-460.0,0.00023561,2]
[374884435,1753461046765,-343.25324345,0.0002365,2]
[374884436,1753461046775,-537.58,0.00023655,6]
[374884437,1753461046785,-1386.37445148,0.00023728,9]
[374884438,1753461046795,-537.63291215,0.00023755,4]
[374884439,1753461046806,-155.93603,0.00023775,9]
[374884440,1753461046816,-155.93603,0.000238,9]
[374884441,1753461046830,-679.68,0.00023835,2]
[374884442,1753461046839,-256.82832573,0.00023835,2]
[374884443,1753461046849,-481.6,0.00023835,2]
[374884444,1753461046859,-267.21,0.00023835,2]
[374884445,1753461046868,-151.0,0.00023835,7]
[374884446,1753461046878,-151.0,0.00023835,7]
[374884447,1753461046888,-827.55,0.00023835,2]
[374884448,1753461046899,-151.0,0.00023835,7]
[374884449,1753461046909,-151.0,0.00023835,7]
[374884450,1753461046918,-151.0,0.00023835,7]
[374884451,1753461046929,-151.0,0.00023835,7]
[374884452,1753461046939,-307.25761521,0.00023835,2]
[374884453,1753461046950,-460.0,0.00023835,2]
[374884454,1753461046962,-399.91,0.00023835,2]
[374884455,1753461046971,-160.0,0.00023865,4]
[374884456,1753461046980,-1082.35,0.00023945,2]
[374884457,1753461046990,-1386.37445148,0.00023969,10]
[374884458,1753461046999,-679.68,0.00024109,2]
[374884459,1753461047009,-481.6,0.00024109,2]
[374884460,1753461047018,-827.55,0.00024109,2]
[374884461,1753461047027,-460.0,0.00024109,2]
[374884462,1753461047037,-500.0,0.00024176,2]
[374884463,1753461047046,-1129.98,0.000242,7]
[374884464,1753461047056,-1386.37445148,0.0002421,10]
[374884465,1753461047065,-155.93603,0.00024269,2]
[374884466,1753461047076,-679.68,0.00024383,2]
[374884467,1753461047086,-481.6,0.00024383,2]
[374884468,1753461047096,-827.55,0.00024383,2]
[374884469,1753461047106,-460.0,0.00024383,2]
[374884470,1753461047115,-395.241576,0.00024401,8]
[374884471,1753461047125,-155.93603,0.0002443,6]
[374884472,1753461047134,-500.0,0.00024436,2]
[374884473,1753461047144,-1386.37445148,0.00024452,11]
[374884474,1753461047153,-500.0,0.00024472,2]
[374884475,1753461047162,-151.0,0.00024472,7]
[374884476,1753461047171,-2200.0,0.00024486,2]
[374884477,1753461047181,-6652.3,0.000245,7]
[374884478,1753461047190,-244.0661,0.000245,7]
[374884479,1753461047199,-798.24,0.000246,7]
[374884480,1753461047215,-500.0,0.00024612,2]
[374884481,1753461047224,-679.68,0.00024657,2]
[374884482,1753461047233,-481.6,0.00024657,2]
[374884483,1753461047242,-827.55,0.00024657,2]
[374884484,1753461047252,-460.0,0.00024657,2]
[374884485,1753461047261,-151.0,0.00024658,2]
[374884486,1753461047270,-151.0,0.00024658,2]
[374884487,1753461047280,-151.0,0.00024658,2]
[374884488,1753461047289,-151.0,0.00024658,2]
[374884489,1753461047299,-151.0,0.00024658,2]
[374884490,1753461047309,-617.0,0.00024658,2]
[374884491,1753461047318,-151.0,0.00024658,2]
[374884492,1753461047327,-151.0,0.00024658,2]
[374884493,1753461047336,-151.0,0.00024658,2]
[374884494,1753461047345,-151.0,0.00024658,2]
[374884495,1753461047355,-151.0,0.00024658,2]
[374884496,1753461047364,-151.0,0.00024658,2]
[374884497,1753461047374,-500.0,0.00024658,2]
[374884498,1753461047384,-151.0,0.00024658,2]
[374884499,1753461047393,-151.0,0.00024658,2]
[374884500,1753461047402,-151.0,0.00024658,2]
[374884501,1753461047412,-153.06486803,0.00024658,2]
[374884502,1753461047421,-502.0,0.00024658,2]
[374884503,1753461047431,-198.0,0.00024658,2]
[374884504,1753461047440,-151.0,0.00024658,2]
[374884505,1753461047449,-151.0,0.00024658,2]
[374884506,1753461047463,-1641.459244,0.0002466,5]
[374884507,1753461047473,-1000.0,0.0002468,5]
[374884508,1753461047482,-1386.37445148,0.00024693,11]
[374884509,1753461047491,-1000.0,0.000247,5]
[374884510,1753461047501,-500.0,0.00024702,2]
[374884511,1753461047510,-1000.0,0.0002472,5]
[374884512,1753461047520,-1000.0,0.0002474,5]
[374884513,1753461047529,-151.0,0.00024757,7]
[374884514,1753461047539,-1000.0,0.0002476,5]
[374884515,1753461047548,-1000.0,0.0002478,5]
[374884516,1753461047557,-2000.0,0.000248,2]
[374884517,1753461047566,-170.6692493,0.000248,2]
[374884518,1753461047576,-1000.0,0.000248,5]
[374884519,1753461047586,-275.37429,0.000248,7]
[374884520,1753461047595,-312.16666667,0.000248,3]
[374884521,1753461047607,-151.0,0.000248,7]
[374884522,1753461047617,-151.0,0.000248,7]
[374884523,1753461047627,-151.0,0.000248,7]
[374884524,1753461047638,-4410.4964132,0.000248,2]
[374884525,1753461047653,-500.0,0.00024838,2]
[374884526,1753461047662,-223.0315306,0.00024874,2]
[374884527,1753461047671,-4410.4964132,0.0002489,2]
[374884528,1753461047681,-1612.38301939,0.000249,2]
[374884529,1753461047691,-490.95854198,0.000249,2]
[374884530,1753461047704,-151.0,0.000249,7]
[374884531,1753461047713,-151.0,0.000249,7]
[374884532,1753461047724,-182.192964,0.000249,7]
[374884533,1753461047734,-151.0,0.000249,7]
[374884534,1753461047743,-203.489416,0.000249,7]
[374884535,1753461047754,-49650.46776221,0.000249,2]
[374884536,1753461047830,-134818.01627792,0.000249,2]
[374884537,1753461047858,-572.75239283,0.000189,2]
[374884538,1753461047868,-572.75239283,0.000239,2]
[374884539,1753461047878,-2115.0549113,0.000249,2]
[374884540,1753461047890,-5778.0,0.000249,2]
[374884541,1753461047902,-460.0,0.000249,2]
[374884542,1753461047916,-910.02513129,0.000249,2]
[374884543,1753461047929,-827.21057423,0.000249,2]
[374884544,1753461049393,-5106.53372776,0.000249,2]
[374884545,1753461049407,-9213.65646376,0.000249,2]
[374884598,1753461620997,529.971516,0.00013699,2]
[374884751,1753462019794,161203.0513,0.00025868,120]
[374884840,1753462237913,-162.0,0.00018575,3]
[374884841,1753462237923,-312.16666667,0.00019153,2]
[374884842,1753462237932,-460.0,0.00019178,2]
[374884843,1753462237941,-341.35333333,0.00019178,2]
[374884844,1753462237954,-118.64666667,0.00019178,2]
[374884845,1753462237963,-469.9478738,0.00019178,2]
[374884846,1753462237972,-460.0,0.00019178,2]
[374884847,1753462237981,-68.48546353,0.00019178,2]
[374884848,1753462237995,-391.51453647,0.00019178,2]
[374884849,1753462238004,-460.0,0.00019178,2]
[374884850,1753462238013,-460.0,0.00019178,2]
[374884851,1753462238022,-460.0,0.00019178,2]
[374884852,1753462238032,-443.8781778,0.00019178,2]
[374884853,1753462238043,-16.1218222,0.00019178,2]
[374884854,1753462238053,-460.0,0.00019178,2]
[374884855,1753462238062,-460.0,0.00019451,2]
[374884856,1753462238072,-462.08622191,0.00019451,2]
[374884857,1753462238081,-460.0,0.00019451,2]
[374884858,1753462238091,-460.0,0.00019451,2]
[374884859,1753462238100,-460.0,0.00019452,2]
[374884860,1753462238110,-460.0,0.00019452,2]
[374884861,1753462238120,-460.0,0.00019452,2]
[374884862,1753462238130,-227.29195589,0.00019452,2]
[374884972,1753462239864,-232.70804411,0.00019452,2]
[374884974,1753462239874,-98.87893758,0.00019452,2]
[374885291,1753462242846,-361.12106242,0.00019452,2]
[374885294,1753462242856,-460.0,0.00019452,2]
[374885295,1753462242866,-125.62024899,0.00019726,2]
[374885298,1753462242878,-334.37975101,0.00019726,2]
[374885300,1753462242888,-460.0,0.00019726,2]
[374885302,1753462242898,-256.82832573,0.00019726,2]
[374885304,1753462242907,-460.0,0.00019726,2]
[374885306,1753462242917,-460.0,0.00019726,2]
[374885308,1753462242927,-347.01,0.0001978,2]
[374885310,1753462242936,-186.03528099,0.00019907,2]
[374885312,1753462242946,-7317.09573526,0.00019908,2]
[374885592,1753462245842,-1735.0991368,0.00019908,2]
[374894403,1753462610403,522.388813,0.00013699,2]
[374894405,1753462709785,-302.84859387,0.000189,2]
[374894406,1753462709808,-302.84859387,0.00019089,2]
[374894407,1753462709832,-302.84859387,0.00019278,2]
[374894408,1753462709854,-302.84859387,0.00019467,2]
[374894409,1753462709877,-238.60562452,0.00019656,2]
[374894616,1753463438084,-300.0,0.00018874,2]
[374894624,1753463438597,-6103.38436898,0.00018875,2]
[374894625,1753463438606,-5356.61563102,0.00018875,2]
[374894626,1753463438622,-8075.48913585,0.00018875,2]
[374894627,1753463438633,-912.7891722,0.00018875,2]
[374894628,1753463438645,-1827.5229,0.00018875,2]
[374894629,1753463438661,-749.8638399,0.00018875,2]
[374894630,1753463438800,-6309.2075714,0.00018875,2]
[374894996,1753463443269,-5000.0,0.00018687,2]
[374894998,1753463443279,-1668.51174963,0.00018875,2]
[374895000,1753463443289,-190.91746428,0.000189,2]
[374895002,1753463443299,-194.585,0.00019635,2]
[374895004,1753463443308,-312.16666667,0.00019877,2]
[374895006,1753463443318,-2350.77023018,0.000199,2]
[374895008,1753463443327,-460.0,0.00019907,2]
[374895011,1753463443348,-460.0,0.00019907,2]
[374895013,1753463443358,-460.0,0.00019907,2]
[374895015,1753463443368,-460.0,0.00019907,2]
[374895017,1753463443378,-460.0,0.00019907,2]
[374895019,1753463443388,-255.59573422,0.00019907,2]
[374895021,1753463443397,-460.0,0.00019907,2]
[374895023,1753463443409,-460.0,0.00019907,2]
[374895025,1753463443423,-460.0,0.00019907,2]
[374895027,1753463443433,-460.0,0.00019907,2]
[374895030,1753463443443,-460.0,0.00019907,2]
[374895032,1753463443453,-460.0,0.00019907,2]
[374895034,1753463443463,-460.0,0.00019907,2]
[374895036,1753463443473,-460.0,0.00019907,2]
[374895038,1753463443484,-460.0,0.00019907,2]
[374895040,1753463443494,-460.0,0.00019907,2]
[374895042,1753463443503,-303.56008555,0.00019907,2]
[374895044,1753463443513,-136.67729765,0.00019907,2]
[374895258,1753463446054,-323.32270235,0.00019907,2]
[374895259,1753463446064,-58.9813929,0.00019907,2]
[374895267,1753463948764,543.993172,0.00013699,2]
[374895268,1753463953663,447.67252862,0.00017001,2]
[374895269,1753463953686,52.32747138,0.00017001,2]
[374895271,1753463959186,500.0,0.00017001,2]
[374895273,1753463965089,500.0,0.00017001,2]
[374895274,1753464011376,1025.17932632,0.0001701,2]
[374895275,1753464024284,5000.0,0.0001701,2]
[374895276,1753464039977,2922.4932023,0.0001701,2]
[374895277,1753464040005,2077.5067977,0.0001701,2]
[374895278,1753464041716,253.1095571,0.00016985,2]
[374895279,1753464055900,5000.0,0.0001701,2]
[374895280,1753464071558,1017.43035716,0.0001701,2]
[374895281,1753464116245,1651.95328804,0.0001701,2]
[374895282,1753464180367,208.10849459,0.00016964,2]
[374895283,1753464183562,1847.7132734,0.00016964,2]
[374895284,1753464307452,4296.53310926,0.00017,2]
[374895285,1753464351787,2244.81,0.00017,2]
[374895303,1753464523574,151.0,0.00026,120]
[374895304,1753464530570,151.0,0.00026,120]
[374895346,1753464626377,952.54826385,0.00017,2]
[374895347,1753464626400,9047.45173615,0.00017,2]
[374895362,1753464632072,-500.0,0.00017064,2]
[374895364,1753464632081,-8024.9131696,0.00017262,2]
[374895366,1753464632090,-299.0,0.00017273,2]
[374895368,1753464632100,-300.0,0.00017273,2]
[374895370,1753464632109,-500.0,0.00017273,2]
[374895372,1753464632119,-2615.86386066,0.00017274,2]
[374895374,1753464632130,-3466.08145846,0.00017274,2]
[374895376,1753464632142,-300.77978518,0.00017274,2]
[374895413,1753464638154,-7077.30281868,0.00017274,2]
[374895425,1753464638262,-10268.21603535,0.00017274,2]
[374895432,1753464638318,-968.55808915,0.00017274,2]
[374895928,1753464643293,-203.19795252,0.00017274,2]
[374895929,1753464643302,-500.0,0.00017962,2]
[374895932,1753464643311,-347.611059,0.00017968,2]
[374895934,1753464643320,-166.0,0.00018015,2]
[374895936,1753464643329,-4901.76318272,0.00018055,2]
[374895938,1753464643346,-17870.15582168,0.00018055,2]
[374895940,1753464643356,-228.271975,0.00018201,2]
[374895942,1753464643365,-233.367176,0.00018333,2]
[374895944,1753464643374,-325.019556,0.00018363,2]
[374895946,1753464643383,-374.0,0.00018861,2]
[374895948,1753464643392,-6358.89998086,0.000189,2]
[374895951,1753464643401,-177.27830952,0.000189,2]
[374895953,1753464643411,-2387.19028395,0.000189,2]
[374895955,1753464643420,-500.0,0.00018908,2]
[374895957,1753464643429,-937.1161783,0.00019,2]
[374895959,1753464643439,-2387.19028375,0.00019141,2]
[374895961,1753464643448,-312.16666667,0.00019154,2]
[374895963,1753464643457,-1096.71890341,0.00019178,2]
[374898822,1753464673262,378.71,0.00017,2]
[374905793,1753465017080,516.793513,0.00013699,2]
[374905797,1753465400055,151.0,0.00026027,120]
[374905838,1753465832454,-151.86573426,0.00017513,2]
[374905840,1753465832465,-300.0,0.00018292,2]
[374905842,1753465832474,-1200.0,0.00018292,2]
[374905844,1753465832484,-1562.64545961,0.00018293,2]
[374906353,1753465838342,-14382.98001062,0.00018293,2]
[374906354,1753465838355,-3401.37800903,0.00018293,2]
[374906355,1753465838367,-475.9999938,0.00018293,2]
[374906395,1753465843374,-5076.99652694,0.00018293,2]
[374906396,1753465843391,-1361.4275253,0.00018327,2]
[374906397,1753465843404,-228.271976,0.00018375,2]
[374906398,1753465843414,-206.19952959,0.00019078,2]
[374906399,1753465843423,-178.28110486,0.00019078,2]
[374906400,1753465843434,-312.16666667,0.00019155,2]
[374906401,1753465843443,-460.0,0.00019178,2]
[374906402,1753465843453,-460.0,0.00019178,2]
[374906403,1753465843463,-410.0,0.00019178,2]
[374906404,1753465843473,-654.61138931,0.00019178,2]
[374906405,1753465843483,-460.0,0.00019178,2]
[374906406,1753465843493,-460.0,0.00019178,2]
[374906407,1753465843503,-460.0,0.00019178,2]
[374906408,1753465843513,-330.92230677,0.00019178,2]
[374906409,1753465843523,-460.0,0.00019178,2]
[374906410,1753465843533,-460.0,0.00019178,2]
[374906411,1753465843543,-460.0,0.00019178,2]
[374906412,1753465843552,-460.0,0.00019178,2]
[374906413,1753465843562,-460.0,0.00019178,2]
[374906414,1753465843572,-460.0,0.00019178,2]
[374906415,1753465843582,-376.93103197,0.00019178,2]